[Event "*** SCC Grand Prix: Titled Tuesday Blitz"]
[Site "Chess.com"]
[Date "2020.06.02"]
[Round "7"]
[White "GAusal"]
[Black "cukin84"]
[Result "1-0"]
[WhiteElo "1999"]
[BlackElo "2188"]
[TimeControl "180+1"]
[EndTime "11:18:20 PDT"]
[Termination "GAusal won by resignation"]

1. e4 {[%clk 0:03:00.9]} 1... c6 {[%clk 0:02:59.1]} 2. d4 {[%clk 0:02:57.8]}
2... d5 {[%clk 0:02:57.2]} 3. exd5 {[%clk 0:02:58.1]} 3... cxd5 {[%clk 0:02:57]}
4. Nf3 {[%clk 0:02:51.9]} 4... Nc6 {[%clk 0:02:56.3]} 5. Nc3 {[%clk 0:02:48.5]}
5... Bg4 {[%clk 0:02:55.4]} 6. Bb5 {[%clk 0:02:44.2]} 6... a6 {[%clk 0:02:46.7]}
7. Bxc6+ {[%clk 0:02:34.4]} 7... bxc6 {[%clk 0:02:46.2]} 8. h3 {[%clk
0:02:32.7]} 8... Bh5 {[%clk 0:02:45.7]} 9. g4 {[%clk 0:02:28.8]} 9... Bg6 {[%clk
0:02:45.1]} 10. Bf4 {[%clk 0:02:22]} 10... e6 {[%clk 0:02:42.4]} 11. Qd2 {[%clk
0:02:18.3]} 11... Bd6 {[%clk 0:02:37.9]} 12. O-O-O {[%clk 0:02:10.5]} 12... Ne7
{[%clk 0:02:34.9]} 13. Bxd6 {[%clk 0:02:03.4]} 13... Qxd6 {[%clk 0:02:34.1]} 14.
Ne5 {[%clk 0:02:01.3]} 14... c5 {[%clk 0:02:25.4]} 15. Rhe1 {[%clk 0:02:00]}
15... cxd4 {[%clk 0:02:22.4]} 16. Qxd4 {[%clk 0:01:56]} 16... O-O {[%clk
0:02:21.6]} 17. f4 {[%clk 0:01:51.7]} 17... Rab8 {[%clk 0:02:15.3]} 18. f5
{[%clk 0:01:48.1]} 18... exf5 {[%clk 0:02:10.3]} 19. Nxd5 {[%clk 0:01:44.8]}
19... Nxd5 {[%clk 0:02:06.8]} 20. Qxd5 {[%clk 0:01:37.3]} 20... Qb6 {[%clk
0:02:00.6]} 21. Qd4 {[%clk 0:01:31.9]} 21... fxg4 {[%clk 0:01:54.2]} 22. Qxb6
{[%clk 0:01:26.6]} 22... Rxb6 {[%clk 0:01:53.6]} 23. Nd7 {[%clk 0:01:23.2]}
23... Rc6 {[%clk 0:01:49.1]} 24. Nxf8 {[%clk 0:01:13.2]} 24... Rxc2+ {[%clk
0:01:48.3]} 25. Kb1 {[%clk 0:01:09.5]} 25... Rc8+ {[%clk 0:01:41.1]} 26. Nxg6
{[%clk 0:01:01.3]} 26... hxg6 {[%clk 0:01:41]} 27. hxg4 {[%clk 0:00:58]} 27...
Rc4 {[%clk 0:01:39.7]} 28. g5 {[%clk 0:00:55.1]} 28... f6 {[%clk 0:01:26.5]} 29.
gxf6 {[%clk 0:00:52.5]} 29... gxf6 {[%clk 0:01:26.2]} 30. Re7 {[%clk 0:00:52.3]}
30... Rc8 {[%clk 0:01:21.9]} 31. Rd6 {[%clk 0:00:49.2]} 31... Kf8 {[%clk
0:01:21.7]} 32. Ree6 {[%clk 0:00:49.2]} 1-0

[Event "*** SCC Grand Prix: Titled Tuesday Blitz"]
[Site "Chess.com"]
[Date "2020.06.02"]
[Round "7"]
[White "Reinaldovera"]
[Black "Harry_Rakkel"]
[Result "0-1"]
[WhiteElo "2236"]
[BlackElo "2507"]
[TimeControl "180+1"]
[EndTime "11:18:26 PDT"]
[Termination "Harry_Rakkel won on time"]

1. d4 {[%clk 0:03:00.9]} 1... Nf6 {[%clk 0:02:58.9]} 2. c4 {[%clk 0:03:00.5]}
2... e6 {[%clk 0:02:59.3]} 3. Nc3 {[%clk 0:02:59.8]} 3... Bb4 {[%clk 0:02:58.5]}
4. Qc2 {[%clk 0:02:59.6]} 4... O-O {[%clk 0:02:57.4]} 5. Nf3 {[%clk 0:02:57.9]}
5... c5 {[%clk 0:02:55.4]} 6. dxc5 {[%clk 0:02:56.5]} 6... Na6 {[%clk
0:02:55.1]} 7. g3 {[%clk 0:02:57.1]} 7... Nxc5 {[%clk 0:02:54.5]} 8. Bg2 {[%clk
0:02:57.7]} 8... Nce4 {[%clk 0:02:51.8]} 9. O-O {[%clk 0:02:58.1]} 9... Nxc3
{[%clk 0:02:51.6]} 10. bxc3 {[%clk 0:02:58.4]} 10... Be7 {[%clk 0:02:52.1]} 11.
e4 {[%clk 0:02:57]} 11... Qc7 {[%clk 0:02:46.9]} 12. e5 {[%clk 0:02:52.2]} 12...
Ne8 {[%clk 0:02:45.7]} 13. Bg5 {[%clk 0:02:35.4]} 13... f6 {[%clk 0:02:39.7]}
14. exf6 {[%clk 0:02:31.1]} 14... Bxf6 {[%clk 0:02:39.4]} 15. Rfd1 {[%clk
0:01:40.7]} 15... Rb8 {[%clk 0:02:36.6]} 16. Bf4 {[%clk 0:01:22.2]} 16... d6
{[%clk 0:02:29]} 17. Rab1 {[%clk 0:00:43.2]} 17... Bd7 {[%clk 0:02:19.5]} 18.
Qe2 {[%clk 0:00:34.8]} 18... e5 {[%clk 0:02:16.2]} 19. Be3 {[%clk 0:00:33.5]}
19... b6 {[%clk 0:02:07.6]} 20. Ng5 {[%clk 0:00:29.6]} 20... Bxg5 {[%clk
0:02:03.4]} 21. Bxg5 {[%clk 0:00:27.9]} 21... Be6 {[%clk 0:02:03.8]} 22. Bd5
{[%clk 0:00:12.4]} 22... Bxd5 {[%clk 0:02:02.5]} 23. Rxd5 {[%clk 0:00:12.8]}
23... Rc8 {[%clk 0:02:02.1]} 24. Rb4 {[%clk 0:00:12.3]} 24... Rf7 {[%clk
0:02:00.5]} 25. h4 {[%clk 0:00:09.2]} 25... h6 {[%clk 0:01:59.8]} 26. Be3 {[%clk
0:00:08.3]} 26... Nf6 {[%clk 0:02:00.2]} 27. Rd2 {[%clk 0:00:06.9]} 27... Qc6
{[%clk 0:01:55.9]} 28. Rd3 {[%clk 0:00:06.1]} 28... Ne4 {[%clk 0:01:54.5]} 29.
Qg4 {[%clk 0:00:03.8]} 29... Rcf8 {[%clk 0:01:52.5]} 0-1

[Event "*** SCC Grand Prix: Titled Tuesday Blitz"]
[Site "Chess.com"]
[Date "2020.06.02"]
[Round "7"]
[White "Siniauski"]
[Black "elegant285"]
[Result "0-1"]
[WhiteElo "2491"]
[BlackElo "2387"]
[TimeControl "180+1"]
[EndTime "11:18:30 PDT"]
[Termination "elegant285 won by checkmate"]

1. e4 {[%clk 0:02:59.8]} 1... c6 {[%clk 0:02:59.8]} 2. d4 {[%clk 0:02:59.1]}
2... d5 {[%clk 0:02:58.9]} 3. Nc3 {[%clk 0:02:59.6]} 3... dxe4 {[%clk
0:02:59.2]} 4. Nxe4 {[%clk 0:03:00.5]} 4... Nf6 {[%clk 0:03:00]} 5. Nxf6+ {[%clk
0:02:59.7]} 5... exf6 {[%clk 0:03:00.3]} 6. c3 {[%clk 0:03:00.1]} 6... Bd6
{[%clk 0:02:59.8]} 7. Bd3 {[%clk 0:03:00.3]} 7... O-O {[%clk 0:03:00]} 8. Qc2
{[%clk 0:03:00.4]} 8... Re8+ {[%clk 0:03:00]} 9. Ne2 {[%clk 0:02:59.3]} 9... h5
{[%clk 0:03:00]} 10. Be3 {[%clk 0:02:54.4]} 10... Be6 {[%clk 0:02:59.3]} 11. O-O
{[%clk 0:02:45.7]} 11... Qc7 {[%clk 0:02:54.3]} 12. h3 {[%clk 0:02:44]} 12...
Nd7 {[%clk 0:02:48.6]} 13. c4 {[%clk 0:02:39.5]} 13... Nf8 {[%clk 0:02:36.4]}
14. Rac1 {[%clk 0:02:30.7]} 14... Qd7 {[%clk 0:02:26.5]} 15. Rfd1 {[%clk
0:02:08.1]} 15... Bxh3 {[%clk 0:02:03.8]} 16. gxh3 {[%clk 0:01:53.5]} 16... Qxh3
{[%clk 0:02:03.7]} 17. Nf4 {[%clk 0:00:51.3]} 17... Bxf4 {[%clk 0:01:51]} 18.
Bxf4 {[%clk 0:00:51.3]} 18... Qg4+ {[%clk 0:01:51.2]} 19. Bg3 {[%clk 0:00:49.1]}
19... h4 {[%clk 0:01:51.3]} 20. Kg2 {[%clk 0:00:28]} 20... hxg3 {[%clk
0:01:44.4]} 21. fxg3 {[%clk 0:00:28.9]} 21... Ng6 {[%clk 0:01:42.8]} 22. Bxg6
{[%clk 0:00:19.9]} 22... Re2+ {[%clk 0:01:41.1]} 23. Kf1 {[%clk 0:00:14.9]}
23... Qf3+ {[%clk 0:01:37.6]} 24. Kg1 {[%clk 0:00:13.1]} 24... Qg2# {[%clk
0:01:37.5]} 0-1

[Event "*** SCC Grand Prix: Titled Tuesday Blitz"]
[Site "Chess.com"]
[Date "2020.06.02"]
[Round "7"]
[White "SantoBlue"]
[Black "mbojan"]
[Result "1-0"]
[WhiteElo "2787"]
[BlackElo "2628"]
[TimeControl "180+1"]
[EndTime "11:18:36 PDT"]
[Termination "SantoBlue won by resignation"]

1. e4 {[%clk 0:02:59.7]} 1... c5 {[%clk 0:02:59.9]} 2. Nf3 {[%clk 0:02:59.4]}
2... Nc6 {[%clk 0:02:59.8]} 3. d4 {[%clk 0:02:57.9]} 3... cxd4 {[%clk
0:03:00.7]} 4. Nxd4 {[%clk 0:02:58.2]} 4... Nf6 {[%clk 0:03:00.5]} 5. Nc3 {[%clk
0:02:58.4]} 5... e5 {[%clk 0:03:00.7]} 6. Ndb5 {[%clk 0:02:58]} 6... d6 {[%clk
0:03:00.8]} 7. Bg5 {[%clk 0:02:58]} 7... a6 {[%clk 0:03:00.6]} 8. Na3 {[%clk
0:02:57.9]} 8... b5 {[%clk 0:03:00.7]} 9. Nd5 {[%clk 0:02:58]} 9... Be7 {[%clk
0:02:59.4]} 10. Bxf6 {[%clk 0:02:58.1]} 10... Bxf6 {[%clk 0:02:59.7]} 11. c3
{[%clk 0:02:58]} 11... O-O {[%clk 0:02:58.4]} 12. Nc2 {[%clk 0:02:57.9]} 12...
Bg5 {[%clk 0:02:55.6]} 13. a4 {[%clk 0:02:57.3]} 13... bxa4 {[%clk 0:02:55.3]}
14. Rxa4 {[%clk 0:02:50.5]} 14... a5 {[%clk 0:02:55.5]} 15. Bc4 {[%clk
0:02:37.6]} 15... Rb8 {[%clk 0:02:55]} 16. h4 {[%clk 0:02:35.1]} 16... Bh6
{[%clk 0:02:53.4]} 17. Ra2 {[%clk 0:02:34.7]} 17... Kh8 {[%clk 0:02:50.3]} 18.
Nce3 {[%clk 0:02:31]} 18... Be6 {[%clk 0:02:34.5]} 19. g3 {[%clk 0:02:28]} 19...
Qc8 {[%clk 0:01:59.7]} 20. b3 {[%clk 0:02:14.3]} 20... Bxe3 {[%clk 0:01:34.1]}
21. Nxe3 {[%clk 0:02:13.6]} 21... Bxc4 {[%clk 0:01:34]} 22. Nxc4 {[%clk
0:02:13.6]} 22... Rd8 {[%clk 0:01:33.9]} 23. O-O {[%clk 0:02:11.1]} 23... Qe6
{[%clk 0:01:24.4]} 24. Qd5 {[%clk 0:02:04.9]} 24... Qxd5 {[%clk 0:00:48]} 25.
exd5 {[%clk 0:02:05]} 25... Ne7 {[%clk 0:00:48.5]} 26. Nxa5 {[%clk 0:02:05.3]}
26... Nxd5 {[%clk 0:00:48.8]} 27. Nc6 {[%clk 0:02:04.9]} 27... Ra8 {[%clk
0:00:49.1]} 28. Rd2 {[%clk 0:02:04.3]} 28... Rdc8 {[%clk 0:00:49.3]} 29. Rxd5
{[%clk 0:01:54.6]} 29... Rxc6 {[%clk 0:00:49.3]} 30. c4 {[%clk 0:01:55.5]} 30...
Rb6 {[%clk 0:00:46.8]} 31. Rb1 {[%clk 0:01:48]} 31... Rab8 {[%clk 0:00:43.7]}
32. b4 {[%clk 0:01:45.8]} 32... Rxb4 {[%clk 0:00:40.9]} 33. Rxb4 {[%clk
0:01:46.7]} 33... Rxb4 {[%clk 0:00:40.7]} 34. c5 {[%clk 0:01:47.6]} 34... f6
{[%clk 0:00:31.5]} 35. cxd6 {[%clk 0:01:41.3]} 35... Rb8 {[%clk 0:00:29.7]} 36.
d7 {[%clk 0:01:40.5]} 1-0

[Event "*** SCC Grand Prix: Titled Tuesday Blitz"]
[Site "Chess.com"]
[Date "2020.06.02"]
[Round "7"]
[White "Rodchenkov_Vitalij"]
[Black "PetrolulSah"]
[Result "1-0"]
[WhiteElo "2442"]
[BlackElo "2224"]
[TimeControl "180+1"]
[EndTime "11:18:36 PDT"]
[Termination "Rodchenkov_Vitalij won by checkmate"]

1. d4 {[%clk 0:03:00.9]} 1... Nf6 {[%clk 0:02:59.4]} 2. Nf3 {[%clk 0:02:56.9]}
2... e6 {[%clk 0:02:59.2]} 3. Bg5 {[%clk 0:02:50.6]} 3... d5 {[%clk 0:02:58.9]}
4. Nbd2 {[%clk 0:02:43.1]} 4... Be7 {[%clk 0:02:58.9]} 5. c3 {[%clk 0:02:35.3]}
5... O-O {[%clk 0:02:58.7]} 6. e3 {[%clk 0:02:27.3]} 6... c5 {[%clk 0:02:58.4]}
7. Bd3 {[%clk 0:02:19.4]} 7... Nc6 {[%clk 0:02:58.4]} 8. O-O {[%clk 0:02:13.9]}
8... c4 {[%clk 0:02:58.4]} 9. Bc2 {[%clk 0:02:03.3]} 9... b5 {[%clk 0:02:58.4]}
10. Qe2 {[%clk 0:01:54.9]} 10... b4 {[%clk 0:02:58]} 11. e4 {[%clk 0:01:50.8]}
11... bxc3 {[%clk 0:02:49.5]} 12. bxc3 {[%clk 0:01:49.8]} 12... Qa5 {[%clk
0:02:39]} 13. e5 {[%clk 0:01:43.8]} 13... Nd7 {[%clk 0:02:35.9]} 14. Bxe7 {[%clk
0:01:40.2]} 14... Nxe7 {[%clk 0:02:35.9]} 15. Bxh7+ {[%clk 0:01:33.1]} 15...
Kxh7 {[%clk 0:02:35.3]} 16. Ng5+ {[%clk 0:01:28.1]} 16... Kh6 {[%clk 0:02:28.8]}
17. f4 {[%clk 0:01:19.4]} 17... Qxc3 {[%clk 0:02:21.4]} 18. Qg4 {[%clk
0:01:06.2]} 18... Qxd4+ {[%clk 0:02:15.3]} 19. Kh1 {[%clk 0:01:04.2]} 19... Rh8
{[%clk 0:01:06.1]} 20. Qh4+ {[%clk 0:00:59.4]} 20... Kg6 {[%clk 0:01:05.4]} 21.
Qxh8 {[%clk 0:00:57]} 21... Kf5 {[%clk 0:00:52.4]} 22. g4+ {[%clk 0:00:41.8]}
22... Kxg4 {[%clk 0:00:50.5]} 23. Qh3# {[%clk 0:00:42]} 1-0

[Event "*** SCC Grand Prix: Titled Tuesday Blitz"]
[Site "Chess.com"]
[Date "2020.06.02"]
[Round "7"]
[White "colegiodemadrid"]
[Black "TST2014"]
[Result "0-1"]
[WhiteElo "2375"]
[BlackElo "2512"]
[TimeControl "180+1"]
[EndTime "11:18:41 PDT"]
[Termination "TST2014 won by resignation"]

1. e4 {[%clk 0:03:00.9]} 1... c5 {[%clk 0:01:45.7]} 2. Nf3 {[%clk 0:03:00.1]}
2... Nc6 {[%clk 0:01:45]} 3. d4 {[%clk 0:03:00.4]} 3... cxd4 {[%clk 0:01:45.1]}
4. Nxd4 {[%clk 0:03:01.3]} 4... Nf6 {[%clk 0:01:44.7]} 5. Nc3 {[%clk 0:03:01.6]}
5... d6 {[%clk 0:01:45.3]} 6. Bc4 {[%clk 0:03:00.1]} 6... e5 {[%clk 0:01:45.3]}
7. Nf5 {[%clk 0:02:54.6]} 7... Bxf5 {[%clk 0:01:45.3]} 8. exf5 {[%clk
0:02:55.5]} 8... Qd7 {[%clk 0:01:45.9]} 9. g4 {[%clk 0:02:54.8]} 9... d5 {[%clk
0:01:46.2]} 10. Nxd5 {[%clk 0:02:47.9]} 10... O-O-O {[%clk 0:01:45.7]} 11. Bg5
{[%clk 0:02:04.2]} 11... Nb4 {[%clk 0:01:44.6]} 12. Nxf6 {[%clk 0:01:37.4]}
12... Qc6 {[%clk 0:01:38.3]} 13. Nd5 {[%clk 0:00:54.4]} 13... Qxc4 {[%clk
0:01:36.7]} 14. Bxd8 {[%clk 0:00:51.4]} 14... Nxc2+ {[%clk 0:01:19.8]} 15. Kd2
{[%clk 0:00:36.5]} 15... Bb4+ {[%clk 0:01:10.2]} 16. Nxb4 {[%clk 0:00:26.4]}
16... Rxd8+ {[%clk 0:01:08.8]} 17. Kc1 {[%clk 0:00:16.6]} 17... Nxb4+ {[%clk
0:00:59.9]} 0-1

[Event "*** SCC Grand Prix: Titled Tuesday Blitz"]
[Site "Chess.com"]
[Date "2020.06.02"]
[Round "7"]
[White "albi1999"]
[Black "Piotrek1979"]
[Result "1-0"]
[WhiteElo "2642"]
[BlackElo "2420"]
[TimeControl "180+1"]
[EndTime "11:18:44 PDT"]
[Termination "albi1999 won by resignation"]

1. d4 {[%clk 0:02:45.4]} 1... Nf6 {[%clk 0:02:58.8]} 2. c4 {[%clk 0:02:45]} 2...
d6 {[%clk 0:02:58.9]} 3. Nf3 {[%clk 0:02:43.6]} 3... Nc6 {[%clk 0:02:59.4]} 4.
Nc3 {[%clk 0:02:42.4]} 4... e5 {[%clk 0:02:59]} 5. g3 {[%clk 0:02:40.4]} 5...
Bg4 {[%clk 0:02:55.6]} 6. Bg2 {[%clk 0:02:32.8]} 6... Bxf3 {[%clk 0:02:54.9]} 7.
Bxf3 {[%clk 0:02:33.2]} 7... exd4 {[%clk 0:02:49.6]} 8. Nb5 {[%clk 0:02:25.1]}
8... Be7 {[%clk 0:02:20]} 9. Nxd4 {[%clk 0:02:23.2]} 9... Nxd4 {[%clk
0:02:20.1]} 10. Qxd4 {[%clk 0:02:24.1]} 10... c6 {[%clk 0:02:20.7]} 11. O-O
{[%clk 0:02:23.9]} 11... O-O {[%clk 0:02:20.5]} 12. b3 {[%clk 0:02:24.3]} 12...
Qb6 {[%clk 0:02:19.6]} 13. Rd1 {[%clk 0:02:21.8]} 13... Qxd4 {[%clk 0:02:19.2]}
14. Rxd4 {[%clk 0:02:22.7]} 14... Nd7 {[%clk 0:02:19.1]} 15. Rd2 {[%clk
0:02:13.6]} 15... Bf6 {[%clk 0:02:19]} 16. Bb2 {[%clk 0:02:11.6]} 16... Bxb2
{[%clk 0:02:17.7]} 17. Rxb2 {[%clk 0:02:12.5]} 17... Nc5 {[%clk 0:02:17.6]} 18.
Rd2 {[%clk 0:02:11.6]} 18... Rfd8 {[%clk 0:02:08.9]} 19. Rad1 {[%clk 0:02:11.4]}
19... Kf8 {[%clk 0:01:59.5]} 20. Rxd6 {[%clk 0:02:11]} 20... Ke7 {[%clk
0:01:59.8]} 21. Rxd8 {[%clk 0:02:10.6]} 21... Rxd8 {[%clk 0:02:00.7]} 22. Rxd8
{[%clk 0:02:10.6]} 22... Kxd8 {[%clk 0:02:01.6]} 23. Kf1 {[%clk 0:02:07.6]}
23... a5 {[%clk 0:02:01.7]} 24. Ke1 {[%clk 0:02:05.6]} 24... Ke7 {[%clk
0:02:02.6]} 25. Kd2 {[%clk 0:02:05.8]} 25... Kd6 {[%clk 0:02:03.2]} 26. Kc3
{[%clk 0:02:05.9]} 26... Ke5 {[%clk 0:02:03.3]} 27. e3 {[%clk 0:02:05.3]} 27...
g5 {[%clk 0:02:03]} 28. a3 {[%clk 0:02:02.1]} 28... h6 {[%clk 0:01:59.9]} 29. b4
{[%clk 0:02:01.6]} 29... axb4+ {[%clk 0:01:59.3]} 30. axb4 {[%clk 0:02:02.5]}
30... Ne6 {[%clk 0:01:56.2]} 31. Bg2 {[%clk 0:01:55]} 31... f5 {[%clk
0:01:55.6]} 32. f4+ {[%clk 0:01:54.7]} 32... Kf6 {[%clk 0:01:50.2]} 33. Bf3
{[%clk 0:01:51.8]} 33... gxf4 {[%clk 0:01:45]} 34. exf4 {[%clk 0:01:50.9]} 34...
Ke7 {[%clk 0:01:39.4]} 35. Be2 {[%clk 0:01:49.8]} 35... Kf6 {[%clk 0:01:31.8]}
36. Bd3 {[%clk 0:01:49.4]} 36... Nf8 {[%clk 0:01:31.9]} 37. c5 {[%clk
0:01:47.4]} 37... Nd7 {[%clk 0:01:32]} 38. Kd4 {[%clk 0:01:45.8]} 38... Ke6
{[%clk 0:01:29.3]} 39. b5 {[%clk 0:01:43.3]} 39... cxb5 {[%clk 0:01:21]} 40.
Bxb5 {[%clk 0:01:41.5]} 40... Nf6 {[%clk 0:01:15.8]} 41. Bc4+ {[%clk 0:01:41.3]}
41... Ke7 {[%clk 0:01:12.8]} 42. Bd5 {[%clk 0:01:38.4]} 42... Ng4 {[%clk
0:00:50.3]} 43. h3 {[%clk 0:01:32.5]} 43... Nf2 {[%clk 0:00:50]} 44. Bxb7 {[%clk
0:01:30.5]} 44... Nxh3 {[%clk 0:00:48.7]} 45. Ke3 {[%clk 0:01:30.1]} 1-0

[Event "*** SCC Grand Prix: Titled Tuesday Blitz"]
[Site "Chess.com"]
[Date "2020.06.02"]
[Round "7"]
[White "PSvidler"]
[Black "artooon"]
[Result "1-0"]
[WhiteElo "2987"]
[BlackElo "2733"]
[TimeControl "180+1"]
[EndTime "11:18:48 PDT"]
[Termination "PSvidler won by resignation"]

1. e4 {[%clk 0:03:00.9]} 1... e5 {[%clk 0:02:59.7]} 2. Nf3 {[%clk 0:03:00.7]}
2... Nc6 {[%clk 0:03:00.1]} 3. Bb5 {[%clk 0:03:00.5]} 3... Nf6 {[%clk
0:03:00.4]} 4. d3 {[%clk 0:03:00.5]} 4... Bc5 {[%clk 0:03:00.4]} 5. c3 {[%clk
0:03:00.5]} 5... O-O {[%clk 0:03:00]} 6. O-O {[%clk 0:03:00.3]} 6... d5 {[%clk
0:02:56.7]} 7. Nbd2 {[%clk 0:02:57.3]} 7... Re8 {[%clk 0:02:52.1]} 8. Qe2 {[%clk
0:02:43.9]} 8... a6 {[%clk 0:02:50]} 9. Ba4 {[%clk 0:02:42.4]} 9... b5 {[%clk
0:02:47.2]} 10. Bb3 {[%clk 0:02:41.6]} 10... Bb7 {[%clk 0:02:28.2]} 11. exd5
{[%clk 0:02:40.8]} 11... Nxd5 {[%clk 0:02:29.1]} 12. Ne4 {[%clk 0:02:40.8]}
12... Nf4 {[%clk 0:02:19.5]} 13. Bxf4 {[%clk 0:02:36.6]} 13... exf4 {[%clk
0:02:20.4]} 14. Qd2 {[%clk 0:02:24.6]} 14... Bd6 {[%clk 0:01:55.7]} 15. Bd5
{[%clk 0:02:03.6]} 15... h6 {[%clk 0:01:43.9]} 16. Rfe1 {[%clk 0:02:03.1]} 16...
Na5 {[%clk 0:01:37.3]} 17. Bxb7 {[%clk 0:02:01.4]} 17... Nxb7 {[%clk 0:01:38.1]}
18. d4 {[%clk 0:01:59.4]} 18... Qd7 {[%clk 0:01:19.8]} 19. Qd3 {[%clk
0:01:56.6]} 19... f5 {[%clk 0:01:14.2]} 20. Ned2 {[%clk 0:01:55.8]} 20... Rad8
{[%clk 0:01:10.3]} 21. a4 {[%clk 0:01:51.3]} 21... c5 {[%clk 0:01:07.7]} 22.
axb5 {[%clk 0:01:48.4]} 22... axb5 {[%clk 0:01:08.6]} 23. Rxe8+ {[%clk
0:01:46.3]} 23... Rxe8 {[%clk 0:01:05.9]} 24. h3 {[%clk 0:01:29]} 24... c4
{[%clk 0:01:04.3]} 25. Qc2 {[%clk 0:01:28.2]} 25... Nd8 {[%clk 0:01:04.2]} 26.
b3 {[%clk 0:01:28]} 26... cxb3 {[%clk 0:01:01.3]} 27. Qxb3+ {[%clk 0:01:27.8]}
27... Nf7 {[%clk 0:01:01.8]} 28. Rb1 {[%clk 0:01:27.6]} 28... Rb8 {[%clk
0:00:55.3]} 29. Qd5 {[%clk 0:01:27.4]} 29... b4 {[%clk 0:00:48.2]} 30. Ne5
{[%clk 0:01:24.4]} 30... Qb5 {[%clk 0:00:44.6]} 31. Qxf7+ {[%clk 0:01:22.8]}
31... Kh8 {[%clk 0:00:42.1]} 32. Ndc4 {[%clk 0:01:19.7]} 32... Bxe5 {[%clk
0:00:41.4]} 33. Nxe5 {[%clk 0:01:19.4]} 1-0

[Event "*** SCC Grand Prix: Titled Tuesday Blitz"]
[Site "Chess.com"]
[Date "2020.06.02"]
[Round "7"]
[White "Sethu0025"]
[Black "JesseKraai"]
[Result "1-0"]
[WhiteElo "2774"]
[BlackElo "2436"]
[TimeControl "180+1"]
[EndTime "11:18:48 PDT"]
[Termination "Sethu0025 won by resignation"]

1. d4 {[%clk 0:03:00.9]} 1... e6 {[%clk 0:02:59.8]} 2. e4 {[%clk 0:03:00.4]}
2... d5 {[%clk 0:02:59.3]} 3. Nc3 {[%clk 0:03:00.6]} 3... Nf6 {[%clk 0:02:59]}
4. e5 {[%clk 0:03:00.9]} 4... Nfd7 {[%clk 0:02:59.3]} 5. f4 {[%clk 0:03:01.6]}
5... c5 {[%clk 0:02:59.4]} 6. Nf3 {[%clk 0:03:02.5]} 6... Nc6 {[%clk 0:02:59.7]}
7. Be3 {[%clk 0:03:03]} 7... cxd4 {[%clk 0:03:00.4]} 8. Nxd4 {[%clk 0:03:02.8]}
8... Bc5 {[%clk 0:03:01.2]} 9. Qd2 {[%clk 0:03:02.5]} 9... O-O {[%clk
0:03:01.8]} 10. O-O-O {[%clk 0:03:02.3]} 10... a6 {[%clk 0:03:02.4]} 11. Kb1
{[%clk 0:03:01]} 11... Nxd4 {[%clk 0:03:00.7]} 12. Bxd4 {[%clk 0:03:01]} 12...
b5 {[%clk 0:03:00.9]} 13. h4 {[%clk 0:02:57.7]} 13... b4 {[%clk 0:03:00.7]} 14.
Ne2 {[%clk 0:02:57.1]} 14... a5 {[%clk 0:03:00.1]} 15. h5 {[%clk 0:02:55.6]}
15... Ba6 {[%clk 0:02:59.1]} 16. g4 {[%clk 0:02:50.2]} 16... Qc7 {[%clk
0:02:56]} 17. h6 {[%clk 0:02:38.1]} 17... g6 {[%clk 0:02:54.9]} 18. Ng3 {[%clk
0:02:25]} 18... Bxd4 {[%clk 0:02:43.1]} 19. Qxd4 {[%clk 0:02:24.6]} 19... Rfc8
{[%clk 0:02:42.8]} 20. Rh2 {[%clk 0:02:23.1]} 20... Bxf1 {[%clk 0:02:28.9]} 21.
Nxf1 {[%clk 0:02:24]} 21... a4 {[%clk 0:02:11]} 22. Ne3 {[%clk 0:02:19.7]} 22...
b3 {[%clk 0:02:06.4]} 23. a3 {[%clk 0:02:17.6]} 23... bxc2+ {[%clk 0:01:00.5]}
24. Rxc2 {[%clk 0:02:15.5]} 24... Qb7 {[%clk 0:01:00.4]} 25. Rdc1 {[%clk
0:02:11.4]} 25... Rxc2 {[%clk 0:00:53.3]} 26. Rxc2 {[%clk 0:02:12.3]} 26... Nb6
{[%clk 0:00:52.7]} 27. f5 {[%clk 0:02:09.5]} 27... Rb8 {[%clk 0:00:43.7]} 28.
fxe6 {[%clk 0:02:05]} 28... fxe6 {[%clk 0:00:43.3]} 29. g5 {[%clk 0:02:02.6]}
29... Qe7 {[%clk 0:00:38.8]} 30. Qf4 {[%clk 0:01:51.7]} 30... Nd7 {[%clk
0:00:31]} 31. Qxa4 {[%clk 0:01:50.7]} 31... Nc5 {[%clk 0:00:30.4]} 32. Qc6
{[%clk 0:01:34.4]} 32... Ne4 {[%clk 0:00:25.9]} 33. Nxd5 {[%clk 0:01:32.8]}
33... Qxa3 {[%clk 0:00:14.9]} 34. Qxe6+ {[%clk 0:01:32.8]} 34... Kh8 {[%clk
0:00:13.9]} 35. Rc8+ {[%clk 0:01:32.9]} 1-0